[Event "Early-Titled-Tuesday-Blitz-June-18-2024"]
[Site "Chess.com"]
[Date "2024.06.18"]
[Round "8"]
[White "micke12a"]
[Black "aot317"]
[Result "0-1"]
[WhiteElo "2376"]
[BlackElo "2531"]
[TimeControl "180+1"]
[EndTime "9:30:28 PDT"]
[Termination "aot317 won by resignation"]

1. d4 {[%clk 0:02:55.6]} 1... Nf6 {[%clk 0:02:59.3]} 2. Nc3 {[%clk 0:02:54.9]}
2... d5 {[%clk 0:02:55.4]} 3. Bf4 {[%clk 0:02:55.1]} 3... e6 {[%clk 0:02:55.4]}
4. Nb5 {[%clk 0:02:53.3]} 4... Bb4+ {[%clk 0:02:55.5]} 5. c3 {[%clk 0:02:52.7]}
5... Ba5 {[%clk 0:02:55.8]} 6. b4 {[%clk 0:02:53.4]} 6... Bb6 {[%clk 0:02:55.7]}
7. a4 {[%clk 0:02:51.8]} 7... a5 {[%clk 0:02:52.9]} 8. e3 {[%clk 0:02:49.3]}
8... O-O {[%clk 0:02:49.7]} 9. h3 {[%clk 0:02:46.9]} 9... Ne4 {[%clk 0:02:38.9]}
10. Bd3 {[%clk 0:02:44.4]} 10... c6 {[%clk 0:02:30]} 11. Bxe4 {[%clk 0:02:44.1]}
11... cxb5 {[%clk 0:02:25.2]} 12. Bc2 {[%clk 0:02:39.6]} 12... axb4 {[%clk
0:02:23.1]} 13. Qd3 {[%clk 0:02:36.1]} 13... g6 {[%clk 0:02:16.7]} 14. cxb4
{[%clk 0:02:33.2]} 14... bxa4 {[%clk 0:02:13.9]} 15. Rxa4 {[%clk 0:02:29.5]}
15... Rxa4 {[%clk 0:02:11.5]} 16. Bxa4 {[%clk 0:02:30.4]} 16... Nc6 {[%clk
0:02:07]} 17. Qb1 {[%clk 0:02:18.6]} 17... Nxb4 {[%clk 0:02:05.2]} 18. Nf3
{[%clk 0:02:12.4]} 18... Nc6 {[%clk 0:01:53.4]} 19. O-O {[%clk 0:02:11]} 19...
Bc7 {[%clk 0:01:47.6]} 20. Bg5 {[%clk 0:02:07.2]} 20... f6 {[%clk 0:01:38]} 21.
Bh4 {[%clk 0:02:06.2]} 21... Ne7 {[%clk 0:01:30.3]} 22. Bc2 {[%clk 0:01:50.2]}
22... Nf5 {[%clk 0:01:24.3]} 23. Bxf5 {[%clk 0:01:48.9]} 23... gxf5 {[%clk
0:01:08.9]} 24. Nd2 {[%clk 0:01:45.1]} 24... Qd7 {[%clk 0:00:48.6]} 25. Qd1
{[%clk 0:01:44.2]} 25... b5 {[%clk 0:00:47.4]} 26. Nb3 {[%clk 0:01:42.9]} 26...
b4 {[%clk 0:00:42.3]} 27. Nc5 {[%clk 0:01:41.1]} 27... Qb5 {[%clk 0:00:42.5]}
28. Qf3 {[%clk 0:01:38.7]} 28... Bd6 {[%clk 0:00:37.1]} 29. Rc1 {[%clk
0:01:34.5]} 29... b3 {[%clk 0:00:33.1]} 30. Bg3 {[%clk 0:01:30.4]} 30... b2
{[%clk 0:00:23.4]} 31. Rb1 {[%clk 0:01:25.6]} 31... Bxc5 {[%clk 0:00:20.1]} 32.
dxc5 {[%clk 0:01:24.7]} 32... Ba6 {[%clk 0:00:15.6]} 33. Bd6 {[%clk 0:01:21.3]}
33... Rf7 {[%clk 0:00:14.7]} 34. Qd1 {[%clk 0:01:08.5]} 34... Rb7 {[%clk
0:00:13.7]} 35. Qc2 {[%clk 0:00:58.4]} 35... Qb3 {[%clk 0:00:12.2]} 36. Qxb3
{[%clk 0:00:51.4]} 36... Rxb3 {[%clk 0:00:13.1]} 37. c6 {[%clk 0:00:51.8]} 37...
Kf7 {[%clk 0:00:11.1]} 38. Bc5 {[%clk 0:00:43.5]} 38... e5 {[%clk 0:00:08.1]}
39. c7 {[%clk 0:00:43.5]} 39... Ke6 {[%clk 0:00:07.2]} 40. f3 {[%clk 0:00:20.5]}
40... Kd7 {[%clk 0:00:07.3]} 41. c8=Q+ {[%clk 0:00:17.4]} 41... Kxc8 {[%clk
0:00:07.3]} 0-1

[Event "Early-Titled-Tuesday-Blitz-June-18-2024"]
[Site "Chess.com"]
[Date "2024.06.18"]
[Round "8"]
[White "gafkens"]
[Black "sansanathalia"]
[Result "1-0"]
[WhiteElo "2623"]
[BlackElo "2455"]
[TimeControl "180+1"]
[EndTime "9:30:29 PDT"]
[Termination "gafkens won by resignation"]

1. e4 {[%clk 0:03:00.9]} 1... c5 {[%clk 0:02:59.7]} 2. Nf3 {[%clk 0:02:59]} 2...
d6 {[%clk 0:02:58.1]} 3. Bb5+ {[%clk 0:02:58.8]} 3... Bd7 {[%clk 0:02:57.5]} 4.
Bxd7+ {[%clk 0:02:58.7]} 4... Qxd7 {[%clk 0:02:57.8]} 5. c4 {[%clk 0:02:58.1]}
5... Nf6 {[%clk 0:02:57.4]} 6. Nc3 {[%clk 0:02:57.5]} 6... e6 {[%clk 0:02:57.1]}
7. d4 {[%clk 0:02:54.7]} 7... cxd4 {[%clk 0:02:56.3]} 8. Nxd4 {[%clk 0:02:55.6]}
8... Be7 {[%clk 0:02:56.3]} 9. b3 {[%clk 0:02:55.4]} 9... O-O {[%clk 0:02:55.6]}
10. O-O {[%clk 0:02:54.9]} 10... Nc6 {[%clk 0:02:53.5]} 11. Bb2 {[%clk
0:02:54.7]} 11... Rfd8 {[%clk 0:02:51]} 12. Qd2 {[%clk 0:02:53]} 12... d5 {[%clk
0:02:47]} 13. Nxc6 {[%clk 0:02:45.8]} 13... bxc6 {[%clk 0:02:46.1]} 14. e5
{[%clk 0:02:34.3]} 14... Ne8 {[%clk 0:02:44.8]} 15. Rad1 {[%clk 0:02:28.2]}
15... Nc7 {[%clk 0:02:35]} 16. f4 {[%clk 0:02:23.3]} 16... c5 {[%clk 0:02:21.3]}
17. Kh1 {[%clk 0:02:17.6]} 17... Qc6 {[%clk 0:02:16.5]} 18. Qe2 {[%clk
0:02:16.9]} 18... dxc4 {[%clk 0:02:06.1]} 19. Qxc4 {[%clk 0:02:15.3]} 19... Nd5
{[%clk 0:02:02.3]} 20. Qe2 {[%clk 0:01:56.2]} 20... Nxc3 {[%clk 0:01:53.8]} 21.
Bxc3 {[%clk 0:01:55.4]} 21... Rd5 {[%clk 0:01:53.5]} 22. Rc1 {[%clk 0:01:44]}
22... Rad8 {[%clk 0:01:46]} 23. f5 {[%clk 0:01:44.3]} 23... exf5 {[%clk
0:01:37.6]} 24. Rxf5 {[%clk 0:01:45.2]} 24... Qd7 {[%clk 0:01:31.9]} 25. Rcf1
{[%clk 0:01:39.8]} 25... Rf8 {[%clk 0:01:12.9]} 26. Qc4 {[%clk 0:01:02.2]} 26...
Qe6 {[%clk 0:01:02.7]} 27. R5f3 {[%clk 0:00:57.4]} 27... h6 {[%clk 0:00:50.9]}
28. h3 {[%clk 0:00:57.3]} 28... a6 {[%clk 0:00:42.4]} 29. Rg3 {[%clk 0:00:55.6]}
29... Kh7 {[%clk 0:00:37]} 30. Qe4+ {[%clk 0:00:49.8]} 30... g6 {[%clk 0:00:29]}
31. Rgf3 {[%clk 0:00:47.6]} 31... f5 {[%clk 0:00:25.7]} 32. Qc4 {[%clk
0:00:43.9]} 32... Rfd8 {[%clk 0:00:23]} 33. Rd3 {[%clk 0:00:41.2]} 33... Kg7
{[%clk 0:00:17.8]} 34. Rfd1 {[%clk 0:00:38.8]} 34... Rxd3 {[%clk 0:00:15.7]} 35.
Qxe6 {[%clk 0:00:38.7]} 35... Rxd1+ {[%clk 0:00:15.9]} 36. Kh2 {[%clk
0:00:39.3]} 36... Bg5 {[%clk 0:00:08.4]} 37. Qc4 {[%clk 0:00:39]} 37... Kh7
{[%clk 0:00:04.9]} 38. h4 {[%clk 0:00:39.4]} 38... Be3 {[%clk 0:00:04.3]} 39.
Qf7+ {[%clk 0:00:38.6]} 39... Kh8 {[%clk 0:00:03]} 40. e6+ {[%clk 0:00:39]}
40... Bd4 {[%clk 0:00:03.5]} 41. Bxd4+ {[%clk 0:00:37]} 41... R8xd4 {[%clk
0:00:02.2]} 42. Qf6+ {[%clk 0:00:22.7]} 42... Kh7 {[%clk 0:00:01.6]} 43. e7
{[%clk 0:00:23.3]} 43... Re4 {[%clk 0:00:01]} 44. Qf7+ {[%clk 0:00:22.1]} 1-0

[Event "Early-Titled-Tuesday-Blitz-June-18-2024"]
[Site "Chess.com"]
[Date "2024.06.18"]
[Round "8"]
[White "Journey_to_GrandMaster_YT"]
[Black "subham777"]
[Result "1-0"]
[WhiteElo "2644"]
[BlackElo "2591"]
[TimeControl "180+1"]
[EndTime "9:30:31 PDT"]
[Termination "Journey_to_GrandMaster_YT won by resignation"]

1. d4 {[%clk 0:03:00.9]} 1... d5 {[%clk 0:02:58.6]} 2. c4 {[%clk 0:02:56.9]}
2... e6 {[%clk 0:02:57.4]} 3. Nc3 {[%clk 0:02:57.2]} 3... Nf6 {[%clk 0:02:57.1]}
4. cxd5 {[%clk 0:02:57.3]} 4... exd5 {[%clk 0:02:58]} 5. Bg5 {[%clk 0:02:57.2]}
5... c6 {[%clk 0:02:58.9]} 6. e3 {[%clk 0:02:57.6]} 6... Bd6 {[%clk 0:02:58.9]}
7. Bd3 {[%clk 0:02:58.1]} 7... O-O {[%clk 0:02:59.5]} 8. Nge2 {[%clk 0:02:58.7]}
8... h6 {[%clk 0:02:59.3]} 9. Bh4 {[%clk 0:02:58.6]} 9... a5 {[%clk 0:02:59.8]}
10. Qc2 {[%clk 0:02:54.9]} 10... Na6 {[%clk 0:02:59.7]} 11. a3 {[%clk
0:02:51.3]} 11... Nc7 {[%clk 0:02:59.7]} 12. h3 {[%clk 0:02:41.8]} 12... Re8
{[%clk 0:02:58.7]} 13. O-O {[%clk 0:02:39.5]} 13... Ne6 {[%clk 0:02:55.7]} 14.
Rad1 {[%clk 0:02:35.5]} 14... Ng5 {[%clk 0:02:43.7]} 15. Bf5 {[%clk 0:02:13.7]}
15... Nfe4 {[%clk 0:02:31.6]} 16. Bxc8 {[%clk 0:01:53]} 16... Rxc8 {[%clk
0:02:28.9]} 17. Nxe4 {[%clk 0:01:49.5]} 17... dxe4 {[%clk 0:02:27.8]} 18. Bg3
{[%clk 0:01:43.6]} 18... Bxg3 {[%clk 0:02:18.8]} 19. Nxg3 {[%clk 0:01:43.6]}
19... Qf6 {[%clk 0:02:17.5]} 20. Qc5 {[%clk 0:01:37.3]} 20... Ra8 {[%clk
0:02:07]} 21. Qf5 {[%clk 0:01:29.7]} 21... Qe7 {[%clk 0:01:38.8]} 22. Rc1 {[%clk
0:01:22.3]} 22... Rad8 {[%clk 0:01:33.5]} 23. Rc5 {[%clk 0:01:12.6]} 23... a4
{[%clk 0:01:33.4]} 24. Re5 {[%clk 0:01:06.1]} 24... Qf8 {[%clk 0:01:17.7]} 25.
Nxe4 {[%clk 0:00:58.7]} 25... Rxe5 {[%clk 0:01:15.1]} 26. dxe5 {[%clk
0:00:57.8]} 26... Nxe4 {[%clk 0:01:09.1]} 27. Qxe4 {[%clk 0:00:57.9]} 27... Qc5
{[%clk 0:01:06.8]} 28. e6 {[%clk 0:00:54.5]} 28... fxe6 {[%clk 0:01:05]} 29.
Qxa4 {[%clk 0:00:49.6]} 29... Qd5 {[%clk 0:00:58.1]} 30. Qb4 {[%clk 0:00:38.8]}
30... b5 {[%clk 0:00:57.6]} 31. e4 {[%clk 0:00:34.3]} 31... Qd2 {[%clk
0:00:54.4]} 32. Qe7 {[%clk 0:00:29]} 32... Qd6 {[%clk 0:00:42.6]} 33. Qxd6
{[%clk 0:00:28]} 33... Rxd6 {[%clk 0:00:43.5]} 34. Rc1 {[%clk 0:00:28.2]} 34...
Kf7 {[%clk 0:00:44]} 35. Rc2 {[%clk 0:00:27.1]} 35... Ke7 {[%clk 0:00:40.4]} 36.
Kf1 {[%clk 0:00:26.1]} 36... Kd7 {[%clk 0:00:39.6]} 37. Ke2 {[%clk 0:00:26.8]}
37... e5 {[%clk 0:00:27]} 38. Rd2 {[%clk 0:00:27.4]} 38... Rd4 {[%clk
0:00:26.1]} 39. Rxd4+ {[%clk 0:00:25.9]} 39... exd4 {[%clk 0:00:26.2]} 40. b4
{[%clk 0:00:21.5]} 40... Ke6 {[%clk 0:00:21.8]} 41. f4 {[%clk 0:00:19.7]} 41...
g5 {[%clk 0:00:21.3]} 42. g3 {[%clk 0:00:18.6]} 42... gxf4 {[%clk 0:00:14.8]}
43. gxf4 {[%clk 0:00:19.5]} 43... Kd6 {[%clk 0:00:15]} 44. Kd3 {[%clk
0:00:18.8]} 44... c5 {[%clk 0:00:15.9]} 45. e5+ {[%clk 0:00:18.2]} 45... Kd5
{[%clk 0:00:14.9]} 46. bxc5 {[%clk 0:00:18.6]} 46... Kxc5 {[%clk 0:00:15.8]} 47.
f5 {[%clk 0:00:18.6]} 47... Kd5 {[%clk 0:00:14.8]} 48. f6 {[%clk 0:00:18.8]} 1-0

[Event "Early-Titled-Tuesday-Blitz-June-18-2024"]
[Site "Chess.com"]
[Date "2024.06.18"]
[Round "8"]
[White "cycygogne"]
[Black "Jeppesen08"]
[Result "1-0"]
[WhiteElo "2230"]
[BlackElo "2440"]
[TimeControl "180+1"]
[EndTime "9:30:31 PDT"]
[Termination "cycygogne won by checkmate"]

1. e4 {[%clk 0:02:57.2]} 1... c5 {[%clk 0:02:59.3]} 2. Nf3 {[%clk 0:02:56.8]}
2... e6 {[%clk 0:02:59.2]} 3. d4 {[%clk 0:02:56.7]} 3... cxd4 {[%clk 0:03:00.1]}
4. Nxd4 {[%clk 0:02:57.1]} 4... Nc6 {[%clk 0:03:00.4]} 5. Nc3 {[%clk 0:02:57.2]}
5... Qc7 {[%clk 0:03:00.5]} 6. Be3 {[%clk 0:02:56.3]} 6... a6 {[%clk 0:03:00.4]}
7. Bd3 {[%clk 0:02:56.4]} 7... b5 {[%clk 0:02:59.8]} 8. Nxc6 {[%clk 0:02:53.7]}
8... Qxc6 {[%clk 0:02:59.9]} 9. f4 {[%clk 0:02:48.6]} 9... Bb7 {[%clk
0:02:59.4]} 10. Qf3 {[%clk 0:02:38.9]} 10... Nf6 {[%clk 0:02:59.5]} 11. a3
{[%clk 0:02:37.6]} 11... b4 {[%clk 0:02:55.8]} 12. axb4 {[%clk 0:02:37.1]} 12...
Bxb4 {[%clk 0:02:56.4]} 13. O-O {[%clk 0:02:12.1]} 13... Bxc3 {[%clk 0:02:53.1]}
14. bxc3 {[%clk 0:02:13]} 14... Nxe4 {[%clk 0:02:50.1]} 15. Bxe4 {[%clk
0:02:09.8]} 15... Qxe4 {[%clk 0:02:48.7]} 16. Qg3 {[%clk 0:02:10.3]} 16... Qg6
{[%clk 0:02:35]} 17. Qf2 {[%clk 0:02:04.8]} 17... O-O {[%clk 0:02:34.5]} 18.
Rad1 {[%clk 0:01:59]} 18... d5 {[%clk 0:02:33]} 19. Bd4 {[%clk 0:01:55.8]} 19...
a5 {[%clk 0:02:22.3]} 20. Rfe1 {[%clk 0:01:55.7]} 20... a4 {[%clk 0:02:19.3]}
21. Re3 {[%clk 0:01:49.3]} 21... Qf5 {[%clk 0:01:54.9]} 22. Re5 {[%clk
0:01:43.2]} 22... Qg4 {[%clk 0:01:50.3]} 23. Ra1 {[%clk 0:01:37]} 23... f6
{[%clk 0:01:36.8]} 24. Re3 {[%clk 0:01:36.7]} 24... Rfb8 {[%clk 0:01:25.1]} 25.
Bxf6 {[%clk 0:01:27.8]} 25... g6 {[%clk 0:01:18.7]} 26. Rg3 {[%clk 0:01:24.5]}
26... Qf5 {[%clk 0:01:18.1]} 27. Be5 {[%clk 0:01:21.3]} 27... Rc8 {[%clk
0:01:17.7]} 28. Qb6 {[%clk 0:01:14.6]} 28... Bc6 {[%clk 0:01:12.8]} 29. Qb4
{[%clk 0:01:11]} 29... Ra7 {[%clk 0:00:59.3]} 30. Rg5 {[%clk 0:00:56.2]} 30...
Qxc2 {[%clk 0:00:48]} 31. Qd6 {[%clk 0:00:56]} 31... Kf7 {[%clk 0:00:46.2]} 32.
Re1 {[%clk 0:00:46.3]} 32... Qd2 {[%clk 0:00:39.5]} 33. Rf1 {[%clk 0:00:34]}
33... Bb5 {[%clk 0:00:32]} 34. f5 {[%clk 0:00:31.6]} 34... Qe3+ {[%clk
0:00:08.6]} 35. Kh1 {[%clk 0:00:31.5]} 35... Bxf1 {[%clk 0:00:03.1]} 36. Qxe6+
{[%clk 0:00:29.4]} 36... Kf8 {[%clk 0:00:03.4]} 37. Bd6+ {[%clk 0:00:21.1]}
37... Re7 {[%clk 0:00:02.3]} 38. Bxe7+ {[%clk 0:00:19.5]} 38... Kg7 {[%clk
0:00:02.3]} 39. Qxe3 {[%clk 0:00:19.4]} 39... a3 {[%clk 0:00:02.9]} 40. Qe5+
{[%clk 0:00:15.4]} 40... Kh6 {[%clk 0:00:03.2]} 41. Rg3 {[%clk 0:00:13]} 41...
a2 {[%clk 0:00:04.1]} 42. Rh3# {[%clk 0:00:12.9]} 1-0

[Event "Early-Titled-Tuesday-Blitz-June-18-2024"]
[Site "Chess.com"]
[Date "2024.06.18"]
[Round "8"]
[White "Chernov_Alexander_A"]
[Black "whiteglovethief"]
[Result "0-1"]
[WhiteElo "2305"]
[BlackElo "2553"]
[TimeControl "180+1"]
[EndTime "9:30:32 PDT"]
[Termination "whiteglovethief won on time"]

1. d4 {[%clk 0:03:00.9]} 1... Nf6 {[%clk 0:02:57]} 2. Nc3 {[%clk 0:03:00.4]}
2... e6 {[%clk 0:02:56.4]} 3. e4 {[%clk 0:02:59.5]} 3... Bb4 {[%clk 0:02:54.1]}
4. e5 {[%clk 0:02:58.6]} 4... Nd5 {[%clk 0:02:51.5]} 5. Qg4 {[%clk 0:02:58]}
5... Nxc3 {[%clk 0:02:46.8]} 6. Qxg7 {[%clk 0:02:57.2]} 6... Rf8 {[%clk
0:02:46.5]} 7. a3 {[%clk 0:02:57.3]} 7... Ba5 {[%clk 0:02:43.1]} 8. Bd2 {[%clk
0:02:56.2]} 8... c5 {[%clk 0:02:33.4]} 9. bxc3 {[%clk 0:02:55.9]} 9... cxd4
{[%clk 0:02:33.2]} 10. Ne2 {[%clk 0:02:32]} 10... dxc3 {[%clk 0:02:25.8]} 11.
Bh6 {[%clk 0:02:30]} 11... Qe7 {[%clk 0:02:24.2]} 12. Qxh7 {[%clk 0:02:20]}
12... Nc6 {[%clk 0:02:22.2]} 13. f4 {[%clk 0:02:05.4]} 13... b6 {[%clk
0:02:13.7]} 14. Qg7 {[%clk 0:01:58.8]} 14... Bb7 {[%clk 0:02:13.4]} 15. Qxf8+
{[%clk 0:01:58.7]} 15... Qxf8 {[%clk 0:02:13.9]} 16. Bxf8 {[%clk 0:01:58.9]}
16... Kxf8 {[%clk 0:02:14.8]} 17. h4 {[%clk 0:01:59]} 17... Ne7 {[%clk
0:02:12.6]} 18. h5 {[%clk 0:01:37.5]} 18... Kg7 {[%clk 0:02:11.4]} 19. Rh3
{[%clk 0:01:36.1]} 19... Nf5 {[%clk 0:02:09.7]} 20. g4 {[%clk 0:01:29.7]} 20...
Nh6 {[%clk 0:02:09]} 21. Rg3 {[%clk 0:01:15.2]} 21... Rg8 {[%clk 0:01:56.7]} 22.
Rd1 {[%clk 0:01:11]} 22... Bc6 {[%clk 0:01:41.8]} 23. Bg2 {[%clk 0:01:09.6]}
23... b5 {[%clk 0:01:36.3]} 24. Nd4 {[%clk 0:00:59.3]} 24... Bxg2 {[%clk
0:01:23.1]} 25. Rxg2 {[%clk 0:00:59.1]} 25... a6 {[%clk 0:01:21.5]} 26. Nf3
{[%clk 0:00:52.6]} 26... Kf8 {[%clk 0:01:19.6]} 27. Rxd7 {[%clk 0:00:40.5]}
27... Rxg4 {[%clk 0:01:15.1]} 28. Rxg4 {[%clk 0:00:37.6]} 28... Nxg4 {[%clk
0:01:16]} 29. Ra7 {[%clk 0:00:35.1]} 29... Ne3 {[%clk 0:01:16]} 30. Nd4 {[%clk
0:00:33.4]} 30... Bb6 {[%clk 0:01:14.2]} 31. Ra8+ {[%clk 0:00:32.4]} 31... Kg7
{[%clk 0:01:14.5]} 32. Nb3 {[%clk 0:00:28.1]} 32... Nxc2+ {[%clk 0:01:14.3]} 33.
Ke2 {[%clk 0:00:26.6]} 33... Nxa3 {[%clk 0:00:56]} 34. Rxa6 {[%clk 0:00:26.1]}
34... Nc4 {[%clk 0:00:56.1]} 35. Kd3 {[%clk 0:00:17]} 35... Be3 {[%clk
0:00:50.2]} 36. Kxc3 {[%clk 0:00:14]} 36... Bxf4 {[%clk 0:00:50.3]} 37. Nd4
{[%clk 0:00:12.7]} 37... Bxe5 {[%clk 0:00:49.3]} 38. Kd3 {[%clk 0:00:12.7]}
38... Bxd4 {[%clk 0:00:45]} 39. Kxd4 {[%clk 0:00:12.7]} 39... Nd2 {[%clk
0:00:43.6]} 40. Kc5 {[%clk 0:00:11.9]} 40... Ne4+ {[%clk 0:00:40.6]} 41. Kxb5
{[%clk 0:00:11.4]} 41... Ng3 {[%clk 0:00:41.2]} 42. Kc5 {[%clk 0:00:08.8]} 42...
Nxh5 {[%clk 0:00:40.2]} 43. Kd6 {[%clk 0:00:09.2]} 43... Kg6 {[%clk 0:00:39.2]}
44. Ra1 {[%clk 0:00:09.6]} 44... Ng7 {[%clk 0:00:33.2]} 45. Rg1+ {[%clk
0:00:09.7]} 45... Kf6 {[%clk 0:00:33.6]} 46. Rf1+ {[%clk 0:00:09.5]} 46... Nf5+
{[%clk 0:00:34.2]} 47. Kc5 {[%clk 0:00:01.6]} 47... Ke5 {[%clk 0:00:34.1]} 0-1

[Event "Early-Titled-Tuesday-Blitz-June-18-2024"]
[Site "Chess.com"]
[Date "2024.06.18"]
[Round "8"]
[White "GelmanAlexander"]
[Black "Adar_07"]
[Result "0-1"]
[WhiteElo "2659"]
[BlackElo "2804"]
[TimeControl "180+1"]
[EndTime "9:30:33 PDT"]
[Termination "Adar_07 won by resignation"]

1. c4 {[%clk 0:03:00.9]} 1... Nf6 {[%clk 0:02:56.7]} 2. d3 {[%clk 0:03:01.2]}
2... e5 {[%clk 0:02:56.1]} 3. Nf3 {[%clk 0:03:00.6]} 3... Nc6 {[%clk 0:02:56.1]}
4. a3 {[%clk 0:03:00.6]} 4... d5 {[%clk 0:02:53.8]} 5. cxd5 {[%clk 0:03:00.5]}
5... Nxd5 {[%clk 0:02:54.7]} 6. e3 {[%clk 0:03:00.7]} 6... g5 {[%clk 0:02:54.4]}
7. h3 {[%clk 0:02:49.8]} 7... Be6 {[%clk 0:02:40.7]} 8. b4 {[%clk 0:02:49.5]}
8... a6 {[%clk 0:02:39.3]} 9. Bb2 {[%clk 0:02:49.4]} 9... f6 {[%clk 0:02:39]}
10. Nbd2 {[%clk 0:02:49.4]} 10... Qd7 {[%clk 0:02:39.1]} 11. Rc1 {[%clk
0:02:46.6]} 11... h5 {[%clk 0:02:35.8]} 12. d4 {[%clk 0:02:46.6]} 12... exd4
{[%clk 0:02:31.8]} 13. Nxd4 {[%clk 0:02:45.9]} 13... Nxd4 {[%clk 0:02:31]} 14.
Bxd4 {[%clk 0:02:46.8]} 14... O-O-O {[%clk 0:02:23.5]} 15. h4 {[%clk 0:02:31.9]}
15... g4 {[%clk 0:02:19.2]} 16. g3 {[%clk 0:02:32.2]} 16... Bd6 {[%clk
0:02:11.4]} 17. Bg2 {[%clk 0:02:29.7]} 17... Be5 {[%clk 0:02:09.2]} 18. Nb3
{[%clk 0:02:22]} 18... Nxe3 {[%clk 0:01:56]} 19. fxe3 {[%clk 0:02:05.1]} 19...
Bxg3+ {[%clk 0:01:46.5]} 20. Ke2 {[%clk 0:02:02]} 20... Qb5+ {[%clk 0:01:41.3]}
21. Kd2 {[%clk 0:01:42.6]} 21... Bf4 {[%clk 0:00:23.1]} 22. Kc3 {[%clk
0:01:07.2]} 22... Bxe3 {[%clk 0:00:20]} 23. Qf1 {[%clk 0:00:30.7]} 23... Qa4
{[%clk 0:00:13.1]} 24. Bxb7+ {[%clk 0:00:20]} 24... Kb8 {[%clk 0:00:12.4]} 25.
Rb1 {[%clk 0:00:14.1]} 25... Bxd4+ {[%clk 0:00:09.7]} 26. Nxd4 {[%clk
0:00:13.6]} 26... Qxa3+ {[%clk 0:00:09.7]} 27. Nb3 {[%clk 0:00:12.3]} 27... Kxb7
{[%clk 0:00:06.8]} 28. Qxf6 {[%clk 0:00:11.9]} 28... Rd6 {[%clk 0:00:06.5]} 29.
Rhd1 {[%clk 0:00:11.2]} 29... Rc6+ {[%clk 0:00:06.7]} 30. Kd2 {[%clk 0:00:09.8]}
30... Qa2+ {[%clk 0:00:05.7]} 31. Rb2 {[%clk 0:00:09.3]} 31... Qa4 {[%clk
0:00:03.7]} 32. Nc5+ {[%clk 0:00:09.4]} 32... Rxc5 {[%clk 0:00:03.5]} 33. bxc5+
{[%clk 0:00:10.3]} 33... Ka7 {[%clk 0:00:03.8]} 34. Qxe6 {[%clk 0:00:09.8]}
34... Rd8+ {[%clk 0:00:02.3]} 35. Ke3 {[%clk 0:00:10.3]} 35... Qxd1 {[%clk
0:00:02.2]} 36. Qc6 {[%clk 0:00:06.1]} 36... Qd4+ {[%clk 0:00:02.5]} 37. Ke2
{[%clk 0:00:05.9]} 37... Qxb2+ {[%clk 0:00:03.4]} 38. Ke3 {[%clk 0:00:06.1]}
38... Qd2+ {[%clk 0:00:03.9]} 39. Ke4 {[%clk 0:00:06.2]} 39... Qg2+ {[%clk
0:00:04.5]} 40. Kf5 {[%clk 0:00:06.5]} 40... Qxc6 {[%clk 0:00:05.4]} 0-1

[Event "Early-Titled-Tuesday-Blitz-June-18-2024"]
[Site "Chess.com"]
[Date "2024.06.18"]
[Round "8"]
[White "EvgenyBurmakin"]
[Black "bescmelasti"]
[Result "0-1"]
[WhiteElo "2408"]
[BlackElo "2625"]
[TimeControl "180+1"]
[EndTime "9:30:33 PDT"]
[Termination "bescmelasti won by checkmate"]

1. e4 {[%clk 0:03:00.9]} 1... c5 {[%clk 0:01:28.2]} 2. Nc3 {[%clk 0:03:00.4]}
2... e6 {[%clk 0:01:29.1]} 3. Nf3 {[%clk 0:02:59.4]} 3... Nc6 {[%clk 0:01:29.1]}
4. d4 {[%clk 0:02:59.6]} 4... cxd4 {[%clk 0:01:29.9]} 5. Nxd4 {[%clk 0:03:00.3]}
5... Nf6 {[%clk 0:01:30.8]} 6. Be3 {[%clk 0:02:59.6]} 6... Bb4 {[%clk
0:01:30.6]} 7. f3 {[%clk 0:02:59.1]} 7... d5 {[%clk 0:01:30.6]} 8. exd5 {[%clk
0:02:21.5]} 8... Nxd5 {[%clk 0:01:29]} 9. Nxc6 {[%clk 0:02:21.4]} 9... bxc6
{[%clk 0:01:28.2]} 10. Bd4 {[%clk 0:02:08.1]} 10... O-O {[%clk 0:01:19.3]} 11.
a3 {[%clk 0:01:56.2]} 11... Nxc3 {[%clk 0:01:12.3]} 12. bxc3 {[%clk 0:01:53.4]}
12... Ba5 {[%clk 0:01:08.7]} 13. Qd3 {[%clk 0:01:16.9]} 13... e5 {[%clk
0:01:05]} 14. Bxe5 {[%clk 0:01:07.3]} 14... Qxd3 {[%clk 0:01:00]} 15. Bxd3
{[%clk 0:00:59.3]} 15... Re8 {[%clk 0:01:00.9]} 16. f4 {[%clk 0:00:53.3]} 16...
f6 {[%clk 0:01:00.4]} 17. Kd2 {[%clk 0:00:44.4]} 17... fxe5 {[%clk 0:00:59.8]}
18. Rhe1 {[%clk 0:00:38.6]} 18... Bc7 {[%clk 0:00:50]} 19. Re3 {[%clk
0:00:30.6]} 19... Bd7 {[%clk 0:00:44.1]} 20. f5 {[%clk 0:00:25.7]} 20... e4
{[%clk 0:00:37.2]} 21. Rxe4 {[%clk 0:00:22.2]} 21... Rxe4 {[%clk 0:00:37.1]} 22.
Bxe4 {[%clk 0:00:22.6]} 22... Bxh2 {[%clk 0:00:37.5]} 23. Rb1 {[%clk 0:00:21.2]}
23... Rb8 {[%clk 0:00:37.6]} 24. Rh1 {[%clk 0:00:17.8]} 24... Bf4+ {[%clk
0:00:37.7]} 25. Kd3 {[%clk 0:00:17.5]} 25... Rd8 {[%clk 0:00:36.9]} 26. Kc4
{[%clk 0:00:17.4]} 26... Be5 {[%clk 0:00:34.2]} 27. f6 {[%clk 0:00:17.1]} 27...
g6 {[%clk 0:00:34]} 28. Kc5 {[%clk 0:00:15.5]} 28... Bxf6 {[%clk 0:00:30.5]} 29.
Rb1 {[%clk 0:00:13]} 29... Bxc3 {[%clk 0:00:29.5]} 30. Rb7 {[%clk 0:00:13.1]}
30... Be8 {[%clk 0:00:28]} 31. Kc4 {[%clk 0:00:07.2]} 31... Rd4+ {[%clk
0:00:26.5]} 32. Kxc3 {[%clk 0:00:07]} 32... Rxe4 {[%clk 0:00:27.4]} 33. Rxa7
{[%clk 0:00:07]} 33... h5 {[%clk 0:00:26]} 34. a4 {[%clk 0:00:06.1]} 34... h4
{[%clk 0:00:26.6]} 35. a5 {[%clk 0:00:06.6]} 35... g5 {[%clk 0:00:24.5]} 36. a6
{[%clk 0:00:07.2]} 36... Ra4 {[%clk 0:00:24.4]} 37. Ra8 {[%clk 0:00:07.3]} 37...
Kf8 {[%clk 0:00:24.3]} 38. Kb3 {[%clk 0:00:08]} 38... Ra1 {[%clk 0:00:23]} 39.
a7 {[%clk 0:00:08.5]} 39... g4 {[%clk 0:00:22.2]} 40. Kb4 {[%clk 0:00:08.8]}
40... h3 {[%clk 0:00:22.4]} 41. gxh3 {[%clk 0:00:09.7]} 41... gxh3 {[%clk
0:00:23.3]} 42. Kc5 {[%clk 0:00:07.4]} 42... h2 {[%clk 0:00:23.4]} 43. Kb6
{[%clk 0:00:08]} 43... h1=Q {[%clk 0:00:23.3]} 44. c4 {[%clk 0:00:07.9]} 44...
c5 {[%clk 0:00:23.5]} 45. Rb8 {[%clk 0:00:07.3]} 45... Qb1+ {[%clk 0:00:22.5]}
46. Kc7 {[%clk 0:00:07.5]} 46... Rxa7+ {[%clk 0:00:23.1]} 47. Kc8 {[%clk
0:00:08]} 47... Bd7+ {[%clk 0:00:23.3]} 48. Kd8 {[%clk 0:00:08.2]} 48... Qxb8#
{[%clk 0:00:24.1]} 0-1